[Event "Titled Tuesday Blitz March 08 Late 2022"]
[White "Maksimovic, Bojan"]
[Black "Vusatiuk, Vladimir"]
[WhiteFideId "14408120"]
[BlackFideId "14118610"]
[WhiteElo "2448"]
[BlackElo "2157"]
[Result "1-0"]
[Round "08"]
[TimeControl "180+1"]
[Date "2022.03.08"]
[WhiteClock "0:00:08"]
[BlackClock "0:00:05"]

1. e4 {[%clk 0:03:00]}  c5 {[%clk 0:02:40]} 2. Nf3 {[%clk 0:03:00]}  Nc6 {[%clk 0:02:38]} 3. Bb5 {[%clk 0:03:00]}  g6 {[%clk 0:02:37]} 4. O-O {[%clk 0:02:59]}  Bg7 {[%clk 0:02:37]} 5. c3 {[%clk 0:02:59]}  Nf6 {[%clk 0:02:36]} 6. Re1 {[%clk 0:02:59]}  O-O {[%clk 0:02:34]} 7. d4 {[%clk 0:02:59]}  d5 {[%clk 0:02:34]} 8. e5 {[%clk 0:02:59]}  Ne4 {[%clk 0:02:33]} 9. Bxc6 {[%clk 0:02:57]}  bxc6 {[%clk 0:02:32]} 10. Be3 {[%clk 0:02:58]}  cxd4 {[%clk 0:02:25]} 11. cxd4 {[%clk 0:02:59]}  Bf5 {[%clk 0:02:19]} 12. Nbd2 {[%clk 0:02:54]}  Rb8 {[%clk 0:02:05]} 13. b3 {[%clk 0:02:41]}  a5 {[%clk 0:01:29]} 14. a3 {[%clk 0:02:30]}  Bg4 {[%clk 0:01:08]} 15. h3 {[%clk 0:02:23]}  Nxd2 {[%clk 0:01:05]} 16. Bxd2 {[%clk 0:02:20]}  Bxf3 {[%clk 0:00:57]} 17. Qxf3 {[%clk 0:02:21]}  Qb6 {[%clk 0:00:57]} 18. Rab1 {[%clk 0:01:11]}  Qxd4 {[%clk 0:00:54]} 19. Bxa5 {[%clk 0:01:10]}  Qa7 {[%clk 0:00:32]} 20. b4 {[%clk 0:01:04]}  Rbc8 {[%clk 0:00:22]} 21. Rbc1 {[%clk 0:01:00]}  e6 {[%clk 0:00:21]} 22. Qe3 {[%clk 0:00:56]}  Qxe3 {[%clk 0:00:19]} 23. Rxe3 {[%clk 0:00:56]}  Bh6 {[%clk 0:00:19]} 24. Bb6 {[%clk 0:00:41]}  Bxe3 {[%clk 0:00:19]} 25. Bxe3 {[%clk 0:00:42]}  Ra8 {[%clk 0:00:17]} 26. Rc3 {[%clk 0:00:43]}  Rfc8 {[%clk 0:00:17]} 27. Kf1 {[%clk 0:00:42]}  Kf8 {[%clk 0:00:17]} 28. Ke2 {[%clk 0:00:43]}  Ke7 {[%clk 0:00:14]} 29. Kd3 {[%clk 0:00:42]}  Kd7 {[%clk 0:00:14]} 30. Kc2 {[%clk 0:00:40]}  Ra6 {[%clk 0:00:14]} 31. Kb2 {[%clk 0:00:38]}  Rf8 {[%clk 0:00:09]} 32. Bc5 {[%clk 0:00:39]}  Rg8 {[%clk 0:00:08]} 33. Rf3 {[%clk 0:00:39]}  Ke8 {[%clk 0:00:07]} 34. Kb3 {[%clk 0:00:37]}  g5 {[%clk 0:00:08]} 35. Rg3 {[%clk 0:00:23]}  h6 {[%clk 0:00:07]} 36. a4 {[%clk 0:00:22]}  h5 {[%clk 0:00:05]} 37. a5 {[%clk 0:00:18]}  g4 {[%clk 0:00:04]} 38. h4 {[%clk 0:00:17]}  Rg6 {[%clk 0:00:03]} 39. Bd4 {[%clk 0:00:16]}  Kd7 {[%clk 0:00:03]} 40. Rc3 {[%clk 0:00:16]}  Ra8 {[%clk 0:00:03]} 41. Ka4 {[%clk 0:00:15]}  g3 {[%clk 0:00:04]} 42. f3 {[%clk 0:00:13]}  Rgg8 {[%clk 0:00:03]} 43. Rc2 {[%clk 0:00:11]}  Rgf8 {[%clk 0:00:03]} 44. Bc5 {[%clk 0:00:11]}  Rfe8 {[%clk 0:00:04]} 45. Bd4 {[%clk 0:00:11]}  Rec8 {[%clk 0:00:04]} 46. Rd2 {[%clk 0:00:11]}  Rg8 {[%clk 0:00:05]} 47. Bc5 {[%clk 0:00:10]}  Rg6 {[%clk 0:00:05]} 48. Bd4 {[%clk 0:00:10]}  Rg7 {[%clk 0:00:06]} 49. Bc3 {[%clk 0:00:11]}  Rg6 {[%clk 0:00:06]} 50. Rd3 {[%clk 0:00:10]}  Ke8 {[%clk 0:00:06]} 51. Rd1 {[%clk 0:00:10]}  Ke7 {[%clk 0:00:06]} 52. Bd4 {[%clk 0:00:11]}  Kd7 {[%clk 0:00:06]} 53. Rc1 {[%clk 0:00:11]}  Rg7 {[%clk 0:00:06]} 54. Rc2 {[%clk 0:00:11]}  Rgg8 {[%clk 0:00:07]} 55. Bc3 {[%clk 0:00:11]}  Rge8 {[%clk 0:00:07]} 56. Rd2 {[%clk 0:00:11]}  Reb8 {[%clk 0:00:06]} 57. Rd4 {[%clk 0:00:10]}  Rc8 {[%clk 0:00:05]} 58. Rf4 {[%clk 0:00:07]}  c5 {[%clk 0:00:03]} 59. bxc5 {[%clk 0:00:07]}  Rxc5 {[%clk 0:00:03]} 60. Bb4 {[%clk 0:00:07]}  Rc4 {[%clk 0:00:03]} 61. Rxf7+ {[%clk 0:00:08]}  Ke8 {[%clk 0:00:01]} 62. Rf8+ {[%clk 0:00:08]}  Kd7 {[%clk 0:00:01]} 63. Rxa8 {[%clk 0:00:09]}  d4 {[%clk 0:00:02]} 64. Kb5 {[%clk 0:00:09]}  Rc2 {[%clk 0:00:02]} 65. a6 {[%clk 0:00:09]}  d3 {[%clk 0:00:03]} 66. Rg8 {[%clk 0:00:05]}  d2 {[%clk 0:00:03]} 67. Bxd2 {[%clk 0:00:06]}  Rxd2 {[%clk 0:00:03]} 68. a7 {[%clk 0:00:06]}  Rb2+ {[%clk 0:00:03]} 69. Kc4 {[%clk 0:00:06]}  Rc2+ {[%clk 0:00:04]} 70. Kd3 {[%clk 0:00:07]}  Ra2 {[%clk 0:00:05]} 71. a8=Q {[%clk 0:00:07]}  Rxa8 {[%clk 0:00:05]} 72. Rxa8 {[%clk 0:00:08]} 1-0


[Site "https://www.chess.com"]

[Event "Titled Tuesday Blitz March 08 Late 2022"]
[White "Martin Barcelo, Carles"]
[Black "Zhurbinsky, David"]
[WhiteFideId "24561444"]
[BlackFideId "2072904"]
[WhiteElo "1875"]
[BlackElo "2534"]
[Result "1-0"]
[Round "08"]
[TimeControl "180+1"]
[Date "2022.03.09"]
[WhiteClock "0:00:16"]
[BlackClock "0:00:26"]

1. e4 {[%clk 0:03:00]}  e5 {[%clk 0:02:59]} 2. Nf3 {[%clk 0:03:00]}  Nc6 {[%clk 0:02:59]} 3. Bb5 {[%clk 0:02:57]}  a6 {[%clk 0:02:59]} 4. Ba4 {[%clk 0:02:58]}  Nf6 {[%clk 0:02:57]} 5. O-O {[%clk 0:02:58]}  Be7 {[%clk 0:02:58]} 6. d3 {[%clk 0:02:57]}  b5 {[%clk 0:02:59]} 7. Bb3 {[%clk 0:02:57]}  O-O {[%clk 0:02:59]} 8. Nc3 {[%clk 0:02:56]}  Bb7 {[%clk 0:02:57]} 9. Nd5 {[%clk 0:02:47]}  d6 {[%clk 0:02:54]} 10. a4 {[%clk 0:02:46]}  h6 {[%clk 0:02:50]} 11. Nxf6+ {[%clk 0:02:43]}  Bxf6 {[%clk 0:02:50]} 12. Bd5 {[%clk 0:02:43]}  Qd7 {[%clk 0:02:42]} 13. Be3 {[%clk 0:02:33]}  Nd8 {[%clk 0:02:28]} 14. Bxb7 {[%clk 0:02:23]}  Nxb7 {[%clk 0:02:29]} 15. b4 {[%clk 0:02:22]}  c5 {[%clk 0:02:24]} 16. c3 {[%clk 0:02:10]}  Rfd8 {[%clk 0:02:09]} 17. Qb3 {[%clk 0:02:03]}  cxb4 {[%clk 0:01:43]} 18. cxb4 {[%clk 0:02:02]}  d5 {[%clk 0:01:39]} 19. Bb6 {[%clk 0:01:59]}  dxe4 {[%clk 0:01:28]} 20. dxe4 {[%clk 0:01:45]}  Rdc8 {[%clk 0:01:23]} 21. Rfd1 {[%clk 0:01:43]}  Qg4 {[%clk 0:01:19]} 22. axb5 {[%clk 0:01:38]}  axb5 {[%clk 0:01:16]} 23. Rxa8 {[%clk 0:01:39]}  Rxa8 {[%clk 0:01:16]} 24. Qd5 {[%clk 0:01:39]}  Ra3 {[%clk 0:00:43]} 25. Be3 {[%clk 0:01:09]}  Nd8 {[%clk 0:00:37]} 26. h3 {[%clk 0:01:08]}  Qe6 {[%clk 0:00:16]} 27. Qxb5 {[%clk 0:01:06]}  Kh7 {[%clk 0:00:14]} 28. Qd5 {[%clk 0:01:01]}  Qa6 {[%clk 0:00:12]} 29. Nxe5 {[%clk 0:00:59]}  Qe2 {[%clk 0:00:09]} 30. Ng4 {[%clk 0:00:50]}  Be7 {[%clk 0:00:05]} 31. Qd2 {[%clk 0:00:41]}  Qc4 {[%clk 0:00:04]} 32. e5 {[%clk 0:00:20]}  Ne6 {[%clk 0:00:04]} 33. Qc1 {[%clk 0:00:15]}  Qxb4 {[%clk 0:00:03]} 34. Qc2+ {[%clk 0:00:15]}  g6 {[%clk 0:00:03]} 35. Bxh6 {[%clk 0:00:13]}  Qa5 {[%clk 0:00:02]} 36. Be3 {[%clk 0:00:13]}  Ra2 {[%clk 0:00:02]} 37. Qd3 {[%clk 0:00:13]}  Qa4 {[%clk 0:00:03]} 38. Qd7 {[%clk 0:00:12]}  Qb3 {[%clk 0:00:01]} 39. Re1 {[%clk 0:00:11]}  Bb4 {[%clk 0:00:01]} 40. Qxf7+ {[%clk 0:00:09]}  Ng7 {[%clk 0:00:01]} 41. Nf6+ {[%clk 0:00:09]}  Kh8 {[%clk 0:00:01]} 42. Bh6 {[%clk 0:00:08]}  Qxf7 {[%clk 0:00:01]} 43. Rd1 {[%clk 0:00:07]}  Qe7 {[%clk 0:00:01]} 44. Rc1 {[%clk 0:00:07]}  Ra1 {[%clk 0:00:02]} 45. Rxa1 {[%clk 0:00:07]}  Qxe5 {[%clk 0:00:03]} 46. Ra8+ {[%clk 0:00:07]}  Ne8 {[%clk 0:00:02]} 47. Rxe8+ {[%clk 0:00:07]}  Qxe8 {[%clk 0:00:03]} 48. Nxe8 {[%clk 0:00:08]}  Kh7 {[%clk 0:00:04]} 49. Be3 {[%clk 0:00:08]}  Be7 {[%clk 0:00:05]} 50. Nc7 {[%clk 0:00:07]}  Kg8 {[%clk 0:00:05]} 51. Nd5 {[%clk 0:00:07]}  Kf7 {[%clk 0:00:06]} 52. Nxe7 {[%clk 0:00:07]}  Kxe7 {[%clk 0:00:07]} 53. g4 {[%clk 0:00:07]}  Kf7 {[%clk 0:00:08]} 54. f4 {[%clk 0:00:08]}  Ke7 {[%clk 0:00:09]} 55. Kf2 {[%clk 0:00:09]}  Kf7 {[%clk 0:00:10]} 56. Kf3 {[%clk 0:00:10]}  Kg7 {[%clk 0:00:11]} 57. h4 {[%clk 0:00:10]}  Kf7 {[%clk 0:00:12]} 58. g5 {[%clk 0:00:11]}  Kg8 {[%clk 0:00:12]} 59. Kg4 {[%clk 0:00:12]}  Kh7 {[%clk 0:00:13]} 60. h5 {[%clk 0:00:13]}  Kg8 {[%clk 0:00:14]} 61. hxg6 {[%clk 0:00:13]}  Kg7 {[%clk 0:00:15]} 62. f5 {[%clk 0:00:14]}  Kg8 {[%clk 0:00:15]} 63. Kh5 {[%clk 0:00:15]}  Kg7 {[%clk 0:00:16]} 64. f6+ {[%clk 0:00:15]}  Kf8 {[%clk 0:00:17]} 65. Kh6 {[%clk 0:00:16]}  Ke8 {[%clk 0:00:17]} 66. f7+ {[%clk 0:00:16]}  Kd7 {[%clk 0:00:18]} 67. f8=Q {[%clk 0:00:15]}  Ke6 {[%clk 0:00:19]} 68. Qf6+ {[%clk 0:00:15]}  Kd5 {[%clk 0:00:20]} 69. g7 {[%clk 0:00:15]}  Ke4 {[%clk 0:00:20]} 70. g8=Q {[%clk 0:00:15]}  Kd3 {[%clk 0:00:21]} 71. Qd5+ {[%clk 0:00:15]}  Ke2 {[%clk 0:00:22]} 72. Bg1 {[%clk 0:00:14]}  Ke1 {[%clk 0:00:23]} 73. Qe4+ {[%clk 0:00:14]}  Kd2 {[%clk 0:00:24]} 74. Qfd4+ {[%clk 0:00:14]}  Kc1 {[%clk 0:00:25]} 75. Qc6+ {[%clk 0:00:14]}  Kb1 {[%clk 0:00:25]} 76. Qdb6+ {[%clk 0:00:15]}  Ka2 {[%clk 0:00:26]} 77. Qa8# {[%clk 0:00:16]} 1-0


[Site "https://www.chess.com"]

[Event "Titled Tuesday Blitz March 08 Late 2022"]
[White "Mekhitarian, Krikor Sevag"]
[Black "Risteski, Emil"]
[WhiteFideId "2107660"]
[BlackFideId "15005267"]
[WhiteElo "2598"]
[BlackElo "2070"]
[Result "0-1"]
[Round "08"]
[TimeControl "180+1"]
[Date "2022.03.08"]
[WhiteClock "0:00:17"]
[BlackClock "0:00:22"]

1. e4 {[%clk 0:03:00]}  d6 {[%clk 0:02:53]} 2. d4 {[%clk 0:03:00]}  Nf6 {[%clk 0:02:54]} 3. Nc3 {[%clk 0:03:00]}  e5 {[%clk 0:02:55]} 4. Nf3 {[%clk 0:03:00]}  Nbd7 {[%clk 0:02:54]} 5. Bc4 {[%clk 0:03:00]}  Be7 {[%clk 0:02:55]} 6. O-O {[%clk 0:03:00]}  O-O {[%clk 0:02:55]} 7. Re1 {[%clk 0:03:01]}  c6 {[%clk 0:02:56]} 8. a4 {[%clk 0:03:01]}  a5 {[%clk 0:02:56]} 9. h3 {[%clk 0:02:59]}  Nb6 {[%clk 0:02:56]} 10. Ba2 {[%clk 0:02:51]}  Nfd7 {[%clk 0:02:55]} 11. dxe5 {[%clk 0:02:25]}  dxe5 {[%clk 0:02:54]} 12. Be3 {[%clk 0:02:26]}  Qc7 {[%clk 0:02:30]} 13. Ng5 {[%clk 0:02:25]}  Bxg5 {[%clk 0:02:20]} 14. Bxg5 {[%clk 0:02:26]}  Nc5 {[%clk 0:02:20]} 15. Be3 {[%clk 0:02:15]}  Ne6 {[%clk 0:02:05]} 16. Qh5 {[%clk 0:02:12]}  Nd4 {[%clk 0:01:46]} 17. Bxd4 {[%clk 0:02:04]}  exd4 {[%clk 0:01:45]} 18. Ne2 {[%clk 0:02:04]}  c5 {[%clk 0:01:42]} 19. e5 {[%clk 0:01:57]}  Be6 {[%clk 0:01:36]} 20. Bxe6 {[%clk 0:01:50]}  fxe6 {[%clk 0:01:37]} 21. Ng3 {[%clk 0:01:51]}  Nd5 {[%clk 0:01:26]} 22. Qg4 {[%clk 0:01:46]}  Qe7 {[%clk 0:01:20]} 23. Re4 {[%clk 0:01:40]}  Rf7 {[%clk 0:01:15]} 24. c3 {[%clk 0:01:31]}  dxc3 {[%clk 0:01:11]} 25. bxc3 {[%clk 0:01:32]}  Nxc3 {[%clk 0:01:08]} 26. Rc4 {[%clk 0:01:23]}  Nd5 {[%clk 0:01:07]} 27. Ne4 {[%clk 0:01:23]}  Raf8 {[%clk 0:00:55]} 28. Ra2 {[%clk 0:01:07]}  b6 {[%clk 0:00:46]} 29. Nd6 {[%clk 0:00:57]}  Rf4 {[%clk 0:00:44]} 30. Rxf4 {[%clk 0:00:56]}  Rxf4 {[%clk 0:00:43]} 31. Qg3 {[%clk 0:00:56]}  c4 {[%clk 0:00:36]} 32. Kh2 {[%clk 0:00:48]}  c3 {[%clk 0:00:35]} 33. Re2 {[%clk 0:00:47]}  Qf8 {[%clk 0:00:32]} 34. Ne4 {[%clk 0:00:41]}  c2 {[%clk 0:00:25]} 35. Nf6+ {[%clk 0:00:23]}  Rxf6 {[%clk 0:00:22]} 36. exf6 {[%clk 0:00:23]}  c1=Q {[%clk 0:00:22]} 37. fxg7 {[%clk 0:00:17]}  Qff4 {[%clk 0:00:22]} 0-1


[Site "https://www.chess.com"]

[Event "Titled Tuesday Blitz March 08 Late 2022"]
[White "Mkrtchyan, Mariam"]
[Black "Chiu, Isaac"]
[WhiteFideId "13310828"]
[BlackFideId "30900654"]
[WhiteElo "1984"]
[BlackElo "2117"]
[Result "0-1"]
[Round "08"]
[TimeControl "180+1"]
[Date "2022.03.09"]
[WhiteClock "0:00:06"]
[BlackClock "0:00:17"]

1. Nf3 {[%clk 0:03:00]}  g5 {[%clk 0:02:57]} 2. Nxg5 {[%clk 0:03:00]}  e5 {[%clk 0:02:57]} 3. d3 {[%clk 0:02:51]}  d5 {[%clk 0:02:54]} 4. e4 {[%clk 0:02:44]}  c6 {[%clk 0:02:48]} 5. Qh5 {[%clk 0:02:33]}  Qf6 {[%clk 0:02:43]} 6. Be2 {[%clk 0:02:17]}  Ne7 {[%clk 0:02:25]} 7. Nf3 {[%clk 0:02:14]}  Ng6 {[%clk 0:02:24]} 8. Bg5 {[%clk 0:02:01]}  Qd6 {[%clk 0:02:24]} 9. c3 {[%clk 0:01:57]}  Nd7 {[%clk 0:02:14]} 10. Na3 {[%clk 0:01:50]}  Nc5 {[%clk 0:02:12]} 11. O-O-O {[%clk 0:01:47]}  Ne6 {[%clk 0:02:11]} 12. g3 {[%clk 0:01:21]}  Ng7 {[%clk 0:02:05]} 13. Qh6 {[%clk 0:01:15]}  Bg4 {[%clk 0:01:34]} 14. d4 {[%clk 0:00:47]}  Ne6 {[%clk 0:01:25]} 15. dxe5 {[%clk 0:00:39]}  Bxh6 {[%clk 0:01:24]} 16. exd6 {[%clk 0:00:38]}  Nxg5 {[%clk 0:01:25]} 17. Nxg5 {[%clk 0:00:26]}  Bxg5+ {[%clk 0:01:23]} 18. f4 {[%clk 0:00:26]}  Bxe2 {[%clk 0:01:20]} 19. Rde1 {[%clk 0:00:25]}  Nxf4 {[%clk 0:01:14]} 20. gxf4 {[%clk 0:00:24]}  Bxf4+ {[%clk 0:01:15]} 21. Kc2 {[%clk 0:00:23]}  Bh5 {[%clk 0:00:58]} 22. exd5+ {[%clk 0:00:23]}  Kd8 {[%clk 0:00:58]} 23. dxc6 {[%clk 0:00:23]}  Bg6+ {[%clk 0:00:49]} 24. Kb3 {[%clk 0:00:22]}  bxc6 {[%clk 0:00:50]} 25. Nc4 {[%clk 0:00:21]}  Rb8+ {[%clk 0:00:47]} 26. Ka3 {[%clk 0:00:21]}  Re8 {[%clk 0:00:30]} 27. Rxe8+ {[%clk 0:00:17]}  Kxe8 {[%clk 0:00:30]} 28. Rf1 {[%clk 0:00:16]}  Bxh2 {[%clk 0:00:25]} 29. Rf2 {[%clk 0:00:16]}  Bg3 {[%clk 0:00:24]} 30. Rf3 {[%clk 0:00:16]}  Bh4 {[%clk 0:00:24]} 31. b4 {[%clk 0:00:16]}  Kd7 {[%clk 0:00:20]} 32. Rf4 {[%clk 0:00:12]}  Bg5 {[%clk 0:00:20]} 33. Rd4 {[%clk 0:00:12]}  Bc1+ {[%clk 0:00:20]} 34. Ka4 {[%clk 0:00:10]}  Rb5 {[%clk 0:00:20]} 35. Kb3 {[%clk 0:00:07]}  Bf5 {[%clk 0:00:18]} 36. a4 {[%clk 0:00:07]}  Rb8 {[%clk 0:00:18]} 37. Ne5+ {[%clk 0:00:07]}  Kc8 {[%clk 0:00:17]} 38. d7+ {[%clk 0:00:06]}  Kc7 {[%clk 0:00:17]} 39. Nxf7 {[%clk 0:00:07]}  Be6+ {[%clk 0:00:17]} 40. c4 {[%clk 0:00:06]}  Bxf7 {[%clk 0:00:17]} 0-1


[Site "https://www.chess.com"]

[Event "Titled Tuesday Blitz March 08 Late 2022"]
[White "Nakamura, Hikaru"]
[Black "Svane, Rasmus"]
[WhiteFideId "2016192"]
[BlackFideId "4657101"]
[WhiteElo "2850"]
[BlackElo "2645"]
[Result "1-0"]
[Round "08"]
[TimeControl "180+1"]
[Date "2022.03.08"]
[WhiteClock "0:00:29"]
[BlackClock "0:00:06"]

1. Nf3 {[%clk 0:03:00]}  d5 {[%clk 0:02:56]} 2. b3 {[%clk 0:03:00]}  Bg4 {[%clk 0:02:53]} 3. e3 {[%clk 0:02:59]}  Nf6 {[%clk 0:02:52]} 4. h3 {[%clk 0:02:59]}  Bf5 {[%clk 0:02:51]} 5. Bb2 {[%clk 0:02:59]}  h6 {[%clk 0:02:51]} 6. g4 {[%clk 0:02:57]}  Bh7 {[%clk 0:02:50]} 7. Bg2 {[%clk 0:02:55]}  e6 {[%clk 0:02:50]} 8. d3 {[%clk 0:02:55]}  Nbd7 {[%clk 0:02:49]} 9. Nbd2 {[%clk 0:02:55]}  c6 {[%clk 0:02:49]} 10. a3 {[%clk 0:02:55]}  Bd6 {[%clk 0:02:48]} 11. Qe2 {[%clk 0:02:55]}  Qc7 {[%clk 0:02:48]} 12. O-O {[%clk 0:02:51]}  O-O {[%clk 0:02:45]} 13. e4 {[%clk 0:02:50]}  dxe4 {[%clk 0:02:41]} 14. dxe4 {[%clk 0:02:49]}  e5 {[%clk 0:02:30]} 15. Rad1 {[%clk 0:02:46]}  Rfe8 {[%clk 0:02:29]} 16. Rfe1 {[%clk 0:02:39]}  Bf8 {[%clk 0:02:23]} 17. b4 {[%clk 0:02:34]}  a5 {[%clk 0:02:23]} 18. c3 {[%clk 0:02:33]}  Be7 {[%clk 0:02:21]} 19. Qe3 {[%clk 0:02:26]}  Nf8 {[%clk 0:02:17]} 20. c4 {[%clk 0:02:23]}  Ng6 {[%clk 0:02:12]} 21. c5 {[%clk 0:02:23]}  axb4 {[%clk 0:02:04]} 22. axb4 {[%clk 0:02:24]}  Nd7 {[%clk 0:01:50]} 23. Nc4 {[%clk 0:02:23]}  Bf6 {[%clk 0:01:50]} 24. Nd6 {[%clk 0:02:21]}  Red8 {[%clk 0:01:49]} 25. Bf1 {[%clk 0:02:21]}  b5 {[%clk 0:01:46]} 26. Bd3 {[%clk 0:01:35]}  Nf4 {[%clk 0:01:38]} 27. Bc2 {[%clk 0:01:35]}  Nxh3+ {[%clk 0:01:36]} 28. Kh2 {[%clk 0:01:35]}  Ng5 {[%clk 0:01:36]} 29. Bb3 {[%clk 0:01:30]}  Nxf3+ {[%clk 0:01:29]} 30. Qxf3 {[%clk 0:01:30]}  Bg6 {[%clk 0:01:29]} 31. Nf5 {[%clk 0:01:24]}  Bg5 {[%clk 0:01:25]} 32. Rd6 {[%clk 0:01:23]}  Nf8 {[%clk 0:01:23]} 33. Bxe5 {[%clk 0:01:20]}  Bxf5 {[%clk 0:01:15]} 34. gxf5 {[%clk 0:01:16]}  Qe7 {[%clk 0:01:08]} 35. Bg3 {[%clk 0:01:06]}  Bd2 {[%clk 0:01:01]} 36. Rg1 {[%clk 0:01:02]}  Nh7 {[%clk 0:00:52]} 37. e5 {[%clk 0:01:00]}  Bxb4 {[%clk 0:00:18]} 38. f6 {[%clk 0:00:54]}  Qf8 {[%clk 0:00:15]} 39. fxg7 {[%clk 0:00:45]}  Qxg7 {[%clk 0:00:10]} 40. Bh4 {[%clk 0:00:30]}  Ng5 {[%clk 0:00:11]} 41. Bxg5 {[%clk 0:00:30]}  hxg5 {[%clk 0:00:12]} 42. Bxf7+ {[%clk 0:00:30]}  Qxf7 {[%clk 0:00:08]} 43. Rxg5+ {[%clk 0:00:30]}  Kf8 {[%clk 0:00:08]} 44. Rf6 {[%clk 0:00:30]}  Ra7 {[%clk 0:00:06]} 45. e6 {[%clk 0:00:29]} 1-0


[Site "https://www.chess.com"]

[Event "Titled Tuesday Blitz March 08 Late 2022"]
[White "Papasimakopoulos, Alexandros"]
[Black "Moksh Amit Doshi"]
[WhiteFideId "4244125"]
[BlackFideId "25064967"]
[WhiteElo "2340"]
[BlackElo "2245"]
[Result "1-0"]
[Round "08"]
[TimeControl "180+1"]
[Date "2022.03.08"]
[WhiteClock "0:02:30"]
[BlackClock "0:01:47"]

1. d4 {[%clk 0:02:51]}  Nf6 {[%clk 0:02:55]} 2. c4 {[%clk 0:02:52]}  e6 {[%clk 0:02:56]} 3. Nc3 {[%clk 0:02:52]}  Bb4 {[%clk 0:02:56]} 4. Qc2 {[%clk 0:02:53]}  O-O {[%clk 0:02:55]} 5. a3 {[%clk 0:02:53]}  Bxc3+ {[%clk 0:02:56]} 6. Qxc3 {[%clk 0:02:54]}  d5 {[%clk 0:02:57]} 7. Nf3 {[%clk 0:02:52]}  dxc4 {[%clk 0:02:56]} 8. Qxc4 {[%clk 0:02:53]}  b6 {[%clk 0:02:57]} 9. Bg5 {[%clk 0:02:54]}  Ba6 {[%clk 0:02:57]} 10. Qa4 {[%clk 0:02:54]}  h6 {[%clk 0:02:57]} 11. Bh4 {[%clk 0:02:54]}  Qd7 {[%clk 0:02:57]} 12. Qc2 {[%clk 0:02:55]}  c5 {[%clk 0:02:55]} 13. Bxf6 {[%clk 0:02:56]}  gxf6 {[%clk 0:02:55]} 14. dxc5 {[%clk 0:02:56]}  Rc8 {[%clk 0:02:53]} 15. Qe4 {[%clk 0:02:56]}  Qb5 {[%clk 0:02:21]} 16. b4 {[%clk 0:02:47]}  bxc5 {[%clk 0:02:19]} 17. e3 {[%clk 0:02:47]}  Qb7 {[%clk 0:02:18]} 18. Qg4+ {[%clk 0:02:40]}  Kf8 {[%clk 0:02:16]} 19. Bxa6 {[%clk 0:02:35]}  Nxa6 {[%clk 0:02:17]} 20. O-O {[%clk 0:02:34]}  cxb4 {[%clk 0:02:14]} 21. Rfb1 {[%clk 0:02:34]}  Rc3 {[%clk 0:01:55]} 22. axb4 {[%clk 0:02:33]}  Rac8 {[%clk 0:01:55]} 23. b5 {[%clk 0:02:32]}  Nc7 {[%clk 0:01:47]} 24. Qb4+ {[%clk 0:02:30]} 1-0


[Site "https://www.chess.com"]

[Event "Titled Tuesday Blitz March 08 Late 2022"]
[White "Paravyan, David"]
[Black "Dubov, Daniil"]
[WhiteFideId "4194985"]
[BlackFideId "24126055"]
[WhiteElo "2569"]
[BlackElo "2791"]
[Result "0-1"]
[Round "08"]
[TimeControl "180+1"]
[Date "2022.03.08"]
[WhiteClock "0:00:04"]
[BlackClock "0:00:03"]

1. e4 {[%clk 0:03:00]}  c5 {[%clk 0:02:59]} 2. Nf3 {[%clk 0:03:00]}  e6 {[%clk 0:03:00]} 3. a4 {[%clk 0:02:57]}  Nc6 {[%clk 0:02:57]} 4. Nc3 {[%clk 0:02:57]}  Nf6 {[%clk 0:02:54]} 5. Bb5 {[%clk 0:02:57]}  Qc7 {[%clk 0:02:49]} 6. O-O {[%clk 0:02:56]}  Nd4 {[%clk 0:02:47]} 7. Re1 {[%clk 0:02:55]}  a6 {[%clk 0:02:44]} 8. Bf1 {[%clk 0:02:52]}  Ng4 {[%clk 0:02:43]} 9. g3 {[%clk 0:02:51]}  Nxf3+ {[%clk 0:02:42]} 10. Qxf3 {[%clk 0:02:52]}  Ne5 {[%clk 0:02:43]} 11. Qe2 {[%clk 0:02:52]}  Be7 {[%clk 0:02:40]} 12. Bg2 {[%clk 0:02:52]}  O-O {[%clk 0:02:40]} 13. d3 {[%clk 0:02:49]}  b6 {[%clk 0:02:38]} 14. Be3 {[%clk 0:02:41]}  Bb7 {[%clk 0:02:37]} 15. d4 {[%clk 0:02:41]}  cxd4 {[%clk 0:02:36]} 16. Bxd4 {[%clk 0:02:42]}  Rac8 {[%clk 0:02:30]} 17. Rad1 {[%clk 0:02:38]}  Nc4 {[%clk 0:02:03]} 18. b3 {[%clk 0:02:24]}  Na3 {[%clk 0:02:02]} 19. Rd3 {[%clk 0:02:03]}  e5 {[%clk 0:01:44]} 20. Be3 {[%clk 0:02:01]}  Bb4 {[%clk 0:01:44]} 21. Ra1 {[%clk 0:01:49]}  Bxc3 {[%clk 0:01:18]} 22. Rxa3 {[%clk 0:01:48]}  a5 {[%clk 0:01:17]} 23. Rd1 {[%clk 0:01:32]}  Rfd8 {[%clk 0:00:46]} 24. Ra2 {[%clk 0:01:25]}  Qc6 {[%clk 0:00:35]} 25. Qb5 {[%clk 0:01:01]}  Qg6 {[%clk 0:00:19]} 26. Bxb6 {[%clk 0:00:41]}  Re8 {[%clk 0:00:19]} 27. Bxa5 {[%clk 0:00:25]}  Bc6 {[%clk 0:00:19]} 28. Qb6 {[%clk 0:00:25]}  Rb8 {[%clk 0:00:18]} 29. Qc5 {[%clk 0:00:24]}  Bd4 {[%clk 0:00:16]} 30. Qa3 {[%clk 0:00:15]}  Bxe4 {[%clk 0:00:15]} 31. c3 {[%clk 0:00:13]}  Bxg2 {[%clk 0:00:14]} 32. Kxg2 {[%clk 0:00:14]}  Bxc3 {[%clk 0:00:13]} 33. Bxc3 {[%clk 0:00:06]}  Qc6+ {[%clk 0:00:14]} 34. Kg1 {[%clk 0:00:05]}  Qxc3 {[%clk 0:00:15]} 35. Rb1 {[%clk 0:00:03]}  Rb4 {[%clk 0:00:12]} 36. a5 {[%clk 0:00:03]}  Reb8 {[%clk 0:00:12]} 37. a6 {[%clk 0:00:04]}  Rxb3 {[%clk 0:00:12]} 38. Rxb3 {[%clk 0:00:03]}  Rxb3 {[%clk 0:00:12]} 39. a7 {[%clk 0:00:02]}  Qe1+ {[%clk 0:00:02]} 40. Kg2 {[%clk 0:00:03]}  Qe4+ {[%clk 0:00:02]} 41. Kh3 {[%clk 0:00:03]}  Qf5+ {[%clk 0:00:02]} 42. Kg2 {[%clk 0:00:03]}  Qf3+ {[%clk 0:00:02]} 43. Kh3 {[%clk 0:00:03]}  Qh5+ {[%clk 0:00:02]} 44. Kg2 {[%clk 0:00:03]}  Qf3+ {[%clk 0:00:03]} 45. Kh3 {[%clk 0:00:04]}  Rxa3 {[%clk 0:00:04]} 46. Rb2 {[%clk 0:00:04]}  Qf5+ {[%clk 0:00:03]} 0-1


[Site "https://www.chess.com"]